[Event "Chinese League Division-A 2024"]
[Site "Fuling Chongqing"]
[Date "2024.07.02"]
[Round "6.7"]
[White "Kong, Xiangrui"]
[Black "Shen, Fuyan"]
[Result "1-0"]
[ECO "B49"]
[WhiteElo "2439"]
[BlackElo "1830"]
[Annotator "TA"]
[PlyCount "137"]
[EventDate "2024.06.28"]
[EventType "team-tourn"]
[EventCountry "CHN"]
[SourceTitle "playchess.com"]
[Source "ChessBase"]
[SourceQuality "1"]
[TimeControl "40/5400+30:1800+30"]

{[%evp 18,137,64,-8,64,42,103,95,79,68,78,72,75,35,35,35,37,33,41,36,37,25,84,84,96,79,110,91,88,91,114,86,85,91,117,116,139,93,107,0,127,119,142,139,142,142,172,172,153,149,191,162,232,235,241,207,216,222,450,238,255,247,255,255,255,255,255,255,255,255,395,409,468,468,475,393,400,460,453,453,391,281,665,654,547,467,560,572,482,496,886,655,739,631,973,157,150,137,1211,1088,866,791,1942,1738,4775,4775,4775,4762,3082,2314,2693,2658,29986,29987,29987,29988,29988,29989,29989,29990,29990,29991]} 1. e4 {[%emt 0:00:02]} c5 {[%emt 0:00:06]} 2. Nf3 {[%emt 0:00:02]} e6 {[%emt 0:00:05]} 3. d4 {[%emt 0:00:03]} cxd4 {[%emt 0:00:05]} 4. Nxd4 {[%emt 0:00:02]} Nc6 {[%emt 0:00:06]} 5. Be2 {[%emt 0:00:02]} Qc7 {[%emt 0:05:40]} 6. c4 {[%emt 0:00:06]} Nf6 {[%emt 0:02:52]} 7. Nc3 {[%emt 0:00:06]} a6 {[%emt 0:08:49]} 8. O-O {[%emt 0:00:34]} Bb4 {[%emt 0:05:19]} 9. Na4 {[%emt 0:05:12]} Be7 {[%emt 0:22:31]} 10. Be3 {[%emt 0:27:24]} (10. c5 $14) 10... Rb8 {[%emt 0:09:41]} (10... Nxe4 $11 11. Nxc6 bxc6) 11. c5 {[%emt 0:10:39]} O-O {[%emt 0:11:43]} (11... Nxe4 $14 12. Nxc6 bxc6) 12. Nxc6 $16 {[%emt 0:10:40]} dxc6 {[%emt 0:01:01] White is better.} 13. f3 {[%emt 0:04:19]} e5 {[%emt 0:02:03]} 14. Bc4 {[%emt 0:00:35]} Nh5 {[%emt 0:02:34]} 15. g3 {[%emt 0:06:03]} Bh3 {[%emt 0:00:43]} 16. Rf2 {[%emt 0:01:49]} Rbd8 {[%emt 0:00:13]} 17. Rd2 {[%emt 0:01:04]} Rxd2 {[%emt 0:05:55]} 18. Qxd2 {[%emt 0:00:22]} Rd8 {[%emt 0:02:55]} 19. Qc2 {[%emt 0:01:55]} Bc8 {[%emt 0:03:30]} (19... g6 $11 {keeps the balance.}) 20. Qb3 {[%emt 0:01:06]} Bf8 {[%emt 0:01:17]} 21. Nb6 {[%emt 0:04:45]} Nf6 {[%emt 0:04:04]} 22. Nxc8 {[%emt 0:03:47]} Rxc8 {[%emt 0:00:01]} 23. Rd1 {[%emt 0:00:12]} g6 {[%emt 0:00:48]} 24. Bf1 {[%emt 0:02:28] White is much more active.} Re8 {[%emt 0:02:39]} 25. Qc3 {[%emt 0:00:54]} h6 {[%emt 0:01:04]} 26. b4 {[%emt 0:01:29]} Kh7 {[%emt 0:00:50]} 27. Bh3 {[%emt 0:01:16]} (27. Bc4 $142) 27... Kg8 {[%emt 0:01:26]} 28. Bf1 {[%emt 0:02:36]} Kh7 $1 {[%emt 0:00:15]} 29. a4 $36 {[%emt 0:03:15][%cal Ba2a4,Ba4a5][%mdl 2080] White has strong initiative.} Rc8 {[%emt 0:00:53]} 30. a5 {[%emt 0:01:21]} Re8 {[%emt 0:00:24]} 31. h4 {[%emt 0:00:40]} Kg8 {[%emt 0:01:20]} 32. Bh3 {[%emt 0:00:17]} Kh7 {[%emt 0:00:24]} 33. Kg2 {[%emt 0:03:44]} Kg8 {[%emt 0:00:23]} 34. Kf2 {[%emt 0:00:33]} Kh7 {[%emt 0:00:23] [#]} (34... Ra8 $142 35. Rd3 Qb8) 35. g4 $1 $18 {[%emt 0:00:46]} Qc8 {[%emt 0:05:12]} 36. Kg2 {[%emt 0:01:04] And now g5 would win.} Qb8 {[%emt 0:00:19]} 37. Qd2 {[%emt 0:02:22] Against Rd8} Qc7 $2 {[%emt 0:00:51]} (37... Bg7 38. Qd6 (38. g5 Nh5 $18) 38... Qxd6 39. Rxd6 (39. cxd6 Nd7 $18) 39... Re7) 38. g5 {[%emt 0:03:21]} (38. Qa2 $142) 38... Nh5 {[%emt 0:00:04][%cal Bf6h5,Bh5f4,Bf4e6][%mdl 32]} 39. Qd7 {[%emt 0:01:13]} ({Resist} 39. gxh6 $6 Nf4+ 40. Bxf4 exf4 $16) 39... Re7 {[%emt 0:00:57] Black is weak on the light squares} 40. Qxc7 {[%emt 0:00:00]} Rxc7 {[%emt 0:00:00]} 41. Rd7 {[%emt 0:11:10]} Nf4+ {[%emt 0:01:20]} 42. Kg3 {[%emt 0:01:21]} Rxd7 {[%emt 0:01:12]} 43. Bxd7 {[%emt 0:00:01] Hoping for Bc8.} hxg5 {[%emt 0:09:51]} (43... Ne6 {was worth a try.} 44. Bc8 Nd8) 44. hxg5 {[%emt 0:00:27][%cal Od7c8][%mdl 4096] Endgame. Strongly threatening Bc8! KBB-KBN} Ne6 {[%emt 0:00:58]} 45. Bc8 {[%emt 0:08:47]} Nd8 {[%emt 0:00:04]} 46. f4 {[%emt 0:06:20]} exf4+ {[%emt 0:03:28]} 47. Bxf4 {[%emt 0:00:01]} Bg7 {[%emt 0:00:21]} 48. e5 {[%emt 0:02:55]} Kg8 {[%emt 0:01:33]} 49. b5 {[%emt 0:02:25]} cxb5 $2 {[%emt 0:13:22] [#]} (49... axb5 50. Bxb7 Bf8 (50... Nxb7 $2 {is the wrong capture.} 51. a6 $18)) 50. Bxb7 $1 {[%emt 0:00:01][%mdl 512] c6 would now be deadly.} b4 {[%emt 0:02:44]} 51. Bxa6 {[%emt 0:01:27]} b3 {[%emt 0:00:47][%cal Bb4b3,Bb3b2][%mdl 32]} 52. Bd3 {[%emt 0:01:02]} Nc6 {[%emt 0:00:08]} 53. a6 {[%emt 0:00:06]} Bf8 {[%emt 0:01:11]} (53... b2 $142 54. e6 fxe6 55. Bxg6 Bd4) 54. Be3 {[%emt 0:00:34]} b2 {[%emt 0:00:17]} 55. Bb1 {[%emt 0:00:32]} Bg7 {[%emt 0:00:25]} 56. Kf4 {[%emt 0:01:55]} (56. Bd4 $18 {is the precise move to win.}) 56... Bxe5+ $16 {[%emt 0:00:50]} 57. Ke4 {[%emt 0:00:01] Threatens to win with Kd5.} Bg7 $2 {[%emt 0:00:31][%mdl 8192] Loses the game.} (57... Bb8 $16) 58. Bd2 $18 {[%emt 0:00:55] aiming for Kd5.} Kf8 {[%emt 0:00:31]} 59. Kd5 {[%emt 0:00:00]} Na7 {[%emt 0:00:26]} 60. c6 {[%emt 0:00:48] Black must now prevent Be3.} Ke7 {[%emt 0:00:22]} 61. Be3 {[%emt 0:00:30]} Nb5 {[%emt 0:00:10]} 62. Kc5 {[%emt 0:00:09]} Nc7 {[%emt 0:00:58]} 63. Kb6 {[%emt 0:00:29]} Be5 {[%emt 0:00:32]} 64. a7 {[%emt 0:00:18] White wants to mate with Kb7.} Kd8 {[%emt 0:00:33]} 65. Kb7 {[%emt 0:00:06] White mates.} Na8 {[%emt 0:00:30]} 66. Bb6+ {[%emt 0:00:32]} Nxb6 {[%emt 0:00:05]} 67. Kxb6 {[%emt 0:00:01]} Bd4+ {[%emt 0:00:36]} 68. Kb7 {[%emt 0:00:01]} Bxa7 {[%emt 0:00:11]} 69. c7+ {[%emt 0:00:01] Weighted Error Value: White=0.40/Black=0.32.  Loses game:     	---       	Black=1      Mistake:       	White=2     	Black=7      Inaccurate:     	White=1     	Black=1      OK:         	White=17    	Black=12     Best:        	White=4     	Black=4      Strong:       	---       	Black=1      Brilliant:      	White=1     	---} ({Inferior is} 69. Kxa7 Kc7 $11) 1-0

[Event "Chinese League Division-A 2024"]
[Site "Fuling Chongqing"]
[Date "2024.07.02"]
[Round "6.8"]
[White "Xu, Pengmo"]
[Black "Ma, Qun"]
[Result "0-1"]
[ECO "E15"]
[WhiteElo "1834"]
[BlackElo "2643"]
[Annotator "TA"]
[PlyCount "60"]
[EventDate "2024.06.28"]
[EventType "team-tourn"]
[EventCountry "CHN"]
[SourceTitle "playchess.com"]
[Source "ChessBase"]
[SourceQuality "1"]
[TimeControl "40/5400+30:1800+30"]

{[%evp 14,60,0,0,4,12,0,-12,0,-18,0,0,0,-7,-8,0,13,13,14,-35,-37,-47,-33,-116,-108,-256,-267,-260,-257,-253,-262,-279,-276,-329,-312,-540,-415,-748,-404,-430,-384,-590,-547,-599,-589,-1111,-1091,-1081,-1053]} 1. d4 {[%emt 0:00:03]} Nf6 {[%emt 0:00:17]} 2. c4 {[%emt 0:00:18]} e6 {[%emt 0:00:10]} 3. Nf3 {[%emt 0:00:32]} b6 {[%emt 0:00:17]} 4. g3 {[%emt 0:02:54]} Ba6 {[%emt 0:00:10]} 5. Qc2 {[%emt 0:04:49]} c5 {[%emt 0:00:11]} 6. dxc5 {[%emt 0:03:43]} Bxc5 {[%emt 0:00:23]} 7. Bg2 {[%emt 0:00:47]} Nc6 {[%emt 0:00:12]} 8. a3 {[%emt 0:08:12] Hoping for b4.} Rc8 {[%emt 0:00:24]} 9. Nbd2 {[%emt 0:06:23]} Be7 {[%emt 0:06:27]} 10. Qa4 {[%emt 0:03:44]} Nb8 {[%emt 0:02:17] The position is equal.} 11. b4 {[%emt 0:07:12]} Bxc4 {[%emt 0:01:06]} 12. Nxc4 {[%emt 0:03:34]} Rxc4 {[%emt 0:00:05]} 13. Qxa7 {[%emt 0:04:00]} Nd5 {[%emt 0:00:06]} 14. Bb2 {[%emt 0:04:59]} Rc7 {[%emt 0:00:22]} 15. Qa8 {[%emt 0:04:37]} Bf6 {[%emt 0:04:35]} 16. Bxf6 {[%emt 0:03:24]} (16. Nd4 $11 {might be stronger.}) 16... Qxf6 $15 {[%emt 0:00:15]} 17. O-O {[%emt 0:02:01]} (17. Qxb8+ $2 Ke7 $19) 17... O-O {[%emt 0:00:08]} 18. e3 {[%emt 0:03:14] [#]} (18. Nd2 $15) 18... Nc3 $1 $17 {[%emt 0:02:47]} 19. Nd4 {[%emt 0:11:38] [#] This move loses the game for White.} (19. h3 $17) 19... Nc6 $1 $19 {[%emt 0:02:10][%mdl 512] Excellent horsemanship.} 20. Qa6 {[%emt 0:01:52]} Nxd4 {[%emt 0:00:06]} 21. exd4 {[%emt 0:00:07]} Qxd4 {[%emt 0:00:05]} 22. b5 {[%emt 0:01:29]} Rc4 {[%emt 0:03:33] White is weak on the dark squares} 23. Kh1 {[%emt 0:03:08]} d5 {[%emt 0:00:33]} 24. f4 $2 {[%emt 0:01:34]} (24. h4) 24... g6 {[%emt 0:00:42] ...Ne4 is the strong threat.} 25. Qb7 {[%emt 0:00:58]} (25. Rfe1 $142) 25... Nxb5 {[%emt 0:02:02][%cal Bc3b5,Bb5a3,Ba3c4,Bc4e3][%mdl 32] White must now prevent ...Nd6.} 26. Rab1 {[%emt 0:00:23]} Nxa3 {[%emt 0:00:41]} 27. Rxb6 {[%emt 0:00:11]} (27. Rb3 {might work better.} Rc2 28. Qxb6 (28. Rxa3 $2 {perishes.} Qb2 $19) 28... Qxb6 29. Rxb6) 27... Rc2 {[%emt 0:00:27] And now ...Nc4 would win. Black is clearly winning.} 28. Rg1 {[%emt 0:01:26]} Nc4 {[%emt 0:00:09]} 29. Ra6 {[%emt 0:00:16]} Ne3 {[%emt 0:01:01] ( -> ...Rxg2)} 30. Qb6 {[%emt 0:00:11]} Qd2 {[%emt 0:00:21] Weighted Error Value: White=0.85/Black=0.33.  Mistake:       	White=6     	---        Inaccurate:     	White=1     	Black=1      OK:         	White=4     	Black=6      Best:        	White=1     	Black=3      Strong:       	---       	Black=1} 0-1

[Event "Chinese League Division-A 2024"]
[Site "Fuling Chongqing"]
[Date "2024.07.02"]
[Round "6.9"]
[White "Zhai, Mo"]
[Black "Zhao, Yunqing"]
[Result "1-0"]
[ECO "D42"]
[WhiteElo "2348"]
[BlackElo "1986"]
[Annotator "TA"]
[PlyCount "77"]
[EventDate "2024.06.28"]
[EventType "team-tourn"]
[EventCountry "CHN"]
[SourceTitle "playchess.com"]
[Source "ChessBase"]
[SourceQuality "1"]
[TimeControl "40/5400+30:1800+30"]

{[%evp 28,77,0,0,0,0,0,0,0,0,0,0,0,0,0,0,0,0,0,0,0,0,0,1,0,0,120,104,213,164,292,292,466,400,917,905,1018,986,967,931,825,736,1138,1187,1193,1189,1191,1179,1163,1155,1193,1154]} 1. d4 {[%emt 0:00:08]} Nf6 {[%emt 0:00:05]} 2. c4 {[%emt 0:00:06]} e6 {[%emt 0:00:04]} 3. Nf3 {[%emt 0:00:23]} d5 {[%emt 0:00:07]} 4. Nc3 {[%emt 0:00:27]} Bb4 {[%emt 0:00:05]} 5. e3 {[%emt 0:01:00]} c5 {[%emt 0:00:56]} 6. cxd5 {[%emt 0:03:59]} Nxd5 {[%emt 0:03:13]} 7. Bd2 {[%emt 0:00:34]} cxd4 {[%emt 0:03:16]} 8. exd4 {[%emt 0:01:13]} O-O {[%emt 0:05:40]} 9. Bd3 {[%emt 0:00:13]} Be7 {[%emt 0:04:02]} 10. O-O {[%emt 0:00:56]} Nc6 {[%emt 0:12:07]} 11. a3 {[%emt 0:03:49]} Nxc3 {[%emt 0:07:49]} 12. bxc3 {[%emt 0:02:08]} b6 {[%emt 0:05:32]} 13. Qe2 {[%emt 0:00:36]} Bb7 {[%emt 0:01:47]} 14. Qe4 {[%emt 0:00:37]} g6 {[%emt 0:00:07]} 15. Bh6 {[%emt 0:01:30]} Re8 {[%emt 0:00:46]} 16. Rfe1 {[%emt 0:11:00]} Na5 {[%emt 0:19:03]} 17. Qf4 {[%emt 0:10:44]} Bxf3 $1 {[%emt 0:00:44] The position is equal.} 18. Qxf3 {[%emt 0:00:22] Threatens to win with Bb5.} Bg5 {[%emt 0:00:33]} 19. Bxg5 $40 {[%emt 0:00:46][%mdl 128] Black needs to defend precisely.} Qxg5 {[%emt 0:00:07]} 20. Re5 {[%emt 0:00:47]} Qd2 {[%emt 0:05:28]} 21. Ba6 $1 {[%emt 0:03:54][%cal Bd3a6,Ba6b5,Bb5c6,Bc6d5][%mdl 32]} Qb2 {[%emt 0:06:35]} 22. Ree1 {[%emt 0:19:55]} Nb3 {[%emt 0:04:10]} 23. Rad1 {[%emt 0:02:50]} Qxa3 {[%emt 0:03:59]} 24. Bb5 {[%emt 0:10:08][%cal Oc3c4] Strongly threatening c4!} Rf8 {[%emt 0:03:46]} 25. c4 {[%emt 0:02:53] Hoping for Rb1. Black is weak on the light squares} a5 $1 {[%emt 0:01:57]} 26. d5 {[%emt 0:13:09]} exd5 {[%emt 0:01:02] [#]} (26... Rad8 $11 {remains equal.}) 27. Bc6 $1 $16 {[%emt 0:00:42] White is more active.} Rad8 {[%emt 0:03:07]} (27... Ra7 $16 {is a better defense.}) 28. Bxd5 $18 {[%emt 0:01:06] Black must now prevent h4.} Qb4 {[%emt 0:04:13]} (28... Kg7 {might work better.}) 29. Qf6 {[%emt 0:00:31][%cal Od5f7] Bxf7+! would kill now.} Rd7 {[%emt 0:01:07]} (29... Rxd5 $142 30. cxd5 Nc5) 30. h4 {[%emt 0:01:32][%cal Oh4h5]} Rb8 {[%emt 0:03:24] [#]} (30... Rxd5 $142 31. cxd5 Nc5) 31. h5 $1 {[%emt 0:01:14][%mdl 512] White is clearly winning.} Qf8 {[%emt 0:00:34]} (31... Rxd5 32. cxd5) 32. hxg6 {[%emt 0:00:29]} hxg6 {[%emt 0:00:05]} 33. Qxg6+ {[%emt 0:01:30]} Qg7 {[%emt 0:00:04]} 34. Qf5 {[%emt 0:01:01]} Nc5 {[%emt 0:00:46]} 35. Re3 {[%emt 0:00:15][%cal Be1e3,Be3g3,Bg3h3][%mdl 32] Rg3 is the strong threat.} Kf8 {[%emt 0:00:23]} 36. Rg3 {[%emt 0:01:11]} Qh8 {[%emt 0:01:13]} 37. Rh3 {[%emt 0:00:18]} Qg8 {[%emt 0:00:32]} 38. Qf6 {[%emt 0:02:36] Intending Re1 and mate.} Ne4 {[%emt 0:00:26]} 39. Qa1 {[%emt 0:00:59] Weighted Error Value: White=0.00 (flawless) /Black=0.42.  Mistake:       	---       	Black=5      OK:         	White=10    	Black=7      Best:        	White=2     	---        Strong:       	White=2     	Black=2} 1-0

[Event "Chinese League Division-A 2024"]
[Site "Fuling Chongqing"]
[Date "2024.07.02"]
[Round "6.10"]
[White "Feng, Eunice"]
[Black "Yan, Tianqi"]
[Result "0-1"]
[ECO "B28"]
[WhiteElo "1936"]
[BlackElo "2306"]
[Annotator "TA"]
[PlyCount "108"]
[EventDate "2024.06.28"]
[EventType "team-tourn"]
[EventCountry "CHN"]
[SourceTitle "playchess.com"]
[Source "ChessBase"]
[SourceQuality "1"]
[TimeControl "40/5400+30:1800+30"]

{[%evp 17,108,21,43,0,0,0,0,0,0,0,0,0,0,-21,-25,-36,-47,-56,-52,-49,-49,-23,-28,-36,-49,-80,-100,-92,-101,-102,-95,-141,-146,-148,-140,-128,-129,-131,-130,-134,-115,-137,-101,-106,-116,-108,-107,-121,-118,-103,-107,-117,-104,-117,-114,-132,-107,-102,-101,-126,-116,-138,-130,-314,-310,-977,-959,-785,-807,-964,-951,-769,-286,-1612,-1361,-1656,-1670,-975,-824,-29967,-29968,-29967,-29969,-29969,-29957,-29972,-29976,-29976,-29976,-29977,-29977,-29974,-29971]} 1. e4 {[%emt 0:00:04]} c5 {[%emt 0:00:05]} 2. Nf3 {[%emt 0:00:06]} a6 {[%emt 0:00:10]} 3. c4 {[%emt 0:00:05][%cal Bc2c4,Bc4d5][%mdl 32]} Nc6 {[%emt 0:00:08]} 4. d4 {[%emt 0:00:11]} cxd4 {[%emt 0:00:07]} 5. Nxd4 {[%emt 0:00:06]} e5 {[%emt 0:00:09]} 6. Nf5 {[%emt 0:00:08]} d5 {[%emt 0:00:14]} 7. cxd5 {[%emt 0:00:09]} Bxf5 {[%emt 0:00:09]} 8. exf5 {[%emt 0:00:09]} Nd4 {[%emt 0:00:16]} 9. Nc3 {[%emt 0:01:25]} Nf6 {[%emt 0:00:18]} 10. g4 {[%emt 0:00:22]} h5 {[%emt 0:00:38]} 11. g5 {[%emt 0:00:11]} Nxd5 {[%emt 0:00:28] Excellent horsemanship.} 12. Bg2 {[%emt 0:00:06] The position is equal.} Bb4 {[%emt 0:00:52]} 13. Bd2 {[%emt 0:00:22]} Nf4 {[%emt 0:00:59]} 14. Bxf4 {[%emt 0:00:40]} (14. Bxb7 $2 Nd3+ 15. Kf1 Nxb2 $19) 14... exf4 {[%emt 0:00:11]} 15. O-O {[%emt 0:02:00] Qa4+ is the strong threat.} (15. Bxb7 $2 Qe7+ 16. Kf1 Qxb7 $19) (15. Qa4+ b5 16. Qd1 O-O $17) 15... f3 $1 {[%emt 0:00:58]} 16. Bxf3 {[%emt 0:07:46] aiming for Qa4+.} Qxg5+ {[%emt 0:03:51]} (16... Nxf5 $2 17. Qa4+ (17. Bxh5 $2 Qxg5+ 18. Bg4 Bxc3 $19) (17. Bxb7 O-O $18) 17... Kf8 18. Qxb4+ $18) 17. Bg2 {[%emt 0:00:30]} O-O-O {[%emt 0:00:30]} (17... Nxf5 $2 18. Qa4+ Kf8 19. Qxb4+ $18) 18. Qd3 {[%emt 0:00:30][%cal Oc3d5] Black must now prevent Nd5!} Kb8 $1 {[%emt 0:00:30]} (18... Qxf5 $2 {too greedy.} 19. Bh3 $18) 19. Qe4 {[%emt 0:00:30]} Qe7 {Active counter play!} ({Stronger than} 19... Qxf5 20. Qxb7#) 20. Qxe7 {[%emt 0:24:15]} Bxe7 {[%emt 0:11:20]} 21. Nd5 {[%emt 0:00:20]} Nxf5 {[%emt 0:14:48]} 22. Rfd1 {[%emt 0:04:05]} Rhe8 {[%emt 0:07:45]} 23. Rac1 {[%emt 0:11:37]} Bd6 {[%emt 0:02:42]} 24. Bh3 {[%emt 0:05:34]} (24. b4 $142) 24... Nh4 $17 {[%emt 0:02:51]} 25. Ne3 {[%emt 0:13:48]} Bf4 {[%emt 0:03:36]} 26. Rxd8+ {[%emt 0:01:15]} Rxd8 {[%emt 0:00:04]} 27. Rd1 {[%emt 0:01:15] Prevents Rd2.} Rxd1+ {[%emt 0:06:25]} 28. Nxd1 {[%emt 0:00:05][%mdl 4096] Endgame. KBN-KBN} g5 {[%emt 0:03:57][%cal Bg7g5,Bg5g4][%mdl 32]} 29. Bd7 {[%emt 0:02:46]} g4 {[%emt 0:03:33]} 30. h3 {[%emt 0:05:44]} Kc7 {[%emt 0:01:47]} 31. Be8 {[%emt 0:00:08] [#]} Nf3+ $1 {[%emt 0:05:32]} 32. Kg2 {[%emt 0:00:15]} Ne5 {[%emt 0:00:28]} 33. Ba4 {[%emt 0:00:35]} Kd6 {[%emt 0:01:33]} 34. hxg4 {[%emt 0:02:46]} hxg4 {[%emt 0:00:15]} 35. Bc2 {[%emt 0:01:43]} b5 {[%emt 0:01:48]} 36. Bf5 {[%emt 0:02:00]} Kc5 {[%emt 0:05:40]} 37. Nc3 {[%emt 0:08:12]} Bc1 {[%emt 0:01:31]} 38. Nd1 {[%emt 0:01:40]} Kd4 {[%emt 0:07:12]} 39. Kg3 {[%emt 0:00:20]} a5 {[%emt 0:02:02]} 40. Bc2 $2 {[%emt 0:00:00] [#] White does not recover from this.} (40. b3 $17) 40... Bxb2 $1 $19 {[%emt 0:00:00]} 41. Nxb2 {[%emt 0:09:45]} (41. Ne3) 41... Kc3 $1 {[%emt 0:15:50][%csl LRb2,LRc2]} 42. Ba4 {[%emt 0:00:19]} bxa4 {[%emt 0:08:07]} ({Inferior is} 42... Kxb2 43. Bxb5 Kxa2 44. Kf4 $11) 43. Nxa4+ {[%emt 0:00:05] KN-KN} Kb4 {[%emt 0:05:05][%cal Oe5c4] ( -> ...Nc4!)} 44. Nb6 {[%emt 0:00:11]} Kc5 $2 {[%emt 0:02:55]} (44... Ka3 45. Kf4 f6) 45. Nc8 $2 {[%emt 0:03:40]} (45. Na4+ Kb4 46. Nb6) 45... a4 {[%emt 0:03:53]} 46. Ne7 {[%emt 0:04:50]} Nd3 {[%emt 0:02:35]} 47. Nf5 {[%emt 0:08:12]} Nb4 {[%emt 0:00:38]} 48. Ne3 {[%emt 0:00:22]} Nxa2 {[%emt 0:00:32] Black mates.} 49. Nc2 {[%emt 0:00:16]} Nb4 {[%emt 0:01:10]} 50. Na3 {[%emt 0:00:14]} Nc6 {[%emt 0:02:17]} 51. Kxg4 {[%emt 0:00:09]} Kb4 {[%emt 0:00:24]} 52. Nb1 {[%emt 0:00:40]} Kb3 {[%emt 0:00:41]} 53. Kf5 {[%emt 0:00:17]} Kb2 {[%emt 0:00:15]} 54. Nd2 {[%emt 0:00:05]} Na5 {[%emt 0:00:10] Weighted Error Value: White=0.42/Black=0.09 (flawless) .  Loses game:     	White=1     	---        Mistake:       	White=2     	---        Inaccurate:     	White=1     	---        OK:         	White=12    	Black=14     Best:        	White=3     	Black=2      Strong:       	---       	Black=4} 0-1

[Event "Chinese League Division-A 2024"]
[Site "Fuling Chongqing"]
[Date "2024.07.02"]
[Round "6.11"]
[White "Wang, Yue"]
[Black "Bu, Xiangzhi"]
[Result "1/2-1/2"]
[ECO "C67"]
[WhiteElo "2652"]
[BlackElo "2689"]
[Annotator "TA"]
[PlyCount "61"]
[EventDate "2024.06.28"]
[EventType "team-tourn"]
[EventCountry "CHN"]
[SourceTitle "playchess.com"]
[Source "ChessBase"]
[SourceQuality "1"]
[TimeControl "40/5400+30:1800+30"]

{[%evp 18,61,19,20,17,10,25,14,23,15,25,5,10,8,16,0,2,6,6,0,0,0,4,0,0,0,0,0,0,0,0,0,0,0,12,0,0,0,0,0,0,0,0,0,0,0]} 1. e4 {[%emt 0:00:31]} e5 {[%emt 0:00:56]} 2. Nf3 {[%emt 0:01:41]} Nc6 {[%emt 0:01:49]} 3. Bb5 {[%emt 0:04:12]} Nf6 {[%emt 0:01:14]} 4. O-O {[%emt 0:01:47][%cal Bh1f1,Bf1e1,Be1e5][%mdl 32]} Nxe4 {[%emt 0:00:29]} 5. Re1 {[%emt 0:00:31]} Nd6 {[%emt 0:00:18]} 6. Nxe5 {[%emt 0:00:28]} Be7 {[%emt 0:00:11]} 7. Bf1 {[%emt 0:00:16]} Nxe5 {[%emt 0:02:44]} 8. Rxe5 {[%emt 0:00:09]} O-O {[%emt 0:00:09]} 9. d4 {[%emt 0:00:33]} Bf6 {[%emt 0:02:26]} 10. Re1 {[%emt 0:01:32]} Re8 {[%emt 0:01:24]} 11. c3 {[%emt 0:01:02]} Rxe1 {[%emt 0:02:30]} 12. Qxe1 {[%emt 0:01:28]} Ne8 {[%emt 0:01:22]} 13. Bf4 {[%emt 0:01:06]} d5 {[%emt 0:01:10]} 14. Bd3 {[%emt 0:01:42]} g6 {[%emt 0:01:03] The position is equal.} 15. Nd2 {[%emt 0:00:45][%cal Bb1d2,Bd2f3,Bf3e5][%mdl 32]} Ng7 {[%emt 0:00:53]} 16. Nf3 {[%emt 0:01:14]} Bf5 {[%emt 0:01:36]} 17. Bxf5 {[%emt 0:01:07]} Nxf5 {[%emt 0:00:06]} 18. Qd2 {[%emt 0:00:52]} Qd7 {[%emt 0:01:33]} 19. Re1 {[%emt 0:00:49]} Ng7 {[%emt 0:02:07]} 20. Be5 {[%emt 0:03:33]} Bxe5 {[%emt 0:00:38]} 21. Nxe5 {[%emt 0:00:09]} Qd6 {[%emt 0:00:46]} 22. Nd3 {[%emt 0:00:40]} Re8 {[%emt 0:00:55]} 23. Rxe8+ {[%emt 0:00:45]} Nxe8 $11 {[%emt 0:00:02][%mdl 4096] Endgame. KQN-KQN} 24. Qe3 {[%emt 0:00:19]} Ng7 {[%emt 0:00:46]} 25. g3 {[%emt 0:00:47]} Qe6 {[%emt 0:00:59]} 26. Qxe6 {[%emt 0:00:29]} Nxe6 {[%emt 0:00:10]} 27. f3 {[%emt 0:00:11]} f6 {[%emt 0:00:23]} 28. Kf2 {[%emt 0:00:17]} Kf7 {[%emt 0:00:24]} 29. Ke3 {[%emt 0:00:10]} Ke7 {[%emt 0:00:20]} 30. Nf4 {[%emt 0:00:52]} Nxf4 {[%emt 0:00:46]} 31. Kxf4 {[%emt 0:00:17] Not much happened in this game.   Weighted Error Value: White=0.03 (flawless) /Black=0.01 (flawless) .  OK:         	White=5     	Black=15} 1/2-1/2